[Event "FIDE World Cup O10-A 2024"]
[Site "Batumi"]
[Date "2024.06.29"]
[Round "7.1"]
[White "Guntaka, Aayansh"]
[Black "Bolashakov, Nurali"]
[Result "0-1"]
[ECO "B92"]
[WhiteElo "1872"]
[BlackElo "1843"]
[Annotator "NA RC"]
[PlyCount "108"]
[EventDate "2024.06.23"]
[EventType "swiss"]
[EventCountry "GEO"]
[SourceTitle "playchess.com"]
[Source "ChessBase"]
[SourceQuality "1"]
[TimeControl "5400+30"]

1. e4 {[%emt 0:00:06]} c5 {[%emt 0:00:24]} 2. Nf3 {[%emt 0:00:09]} d6 {[%emt 0:00:40]} 3. d4 {[%emt 0:00:08]} cxd4 {[%emt 0:00:26]} 4. Nxd4 {[%emt 0:00:09]} Nf6 {[%emt 0:00:38]} 5. Nc3 {[%emt 0:00:09]} a6 {[%emt 0:00:49]} 6. Be2 {[%emt 0:00:12]} e5 {[%emt 0:00:42]} 7. Nb3 {[%emt 0:00:13]} Be7 {[%emt 1:30:21]} 8. Bg5 {[%emt 0:00:30]} Be6 {[%emt 0:00:30]} 9. Bxf6 {[%emt 0:00:28]} Bxf6 {[%emt 0:00:00]} 10. Nd5 {[%emt 1:33:26]} Bxd5 {[%emt 0:00:00]} 11. Qxd5 {[%emt 0:00:00]} Nc6 {[%emt 0:00:00]} 12. O-O-O {[%emt 0:00:00]} Be7 {[%emt 0:00:00]} 13. Kb1 {[%emt 0:01:30]} Qc7 {[%emt 0:02:30]} 14. Qd2 {[%emt 0:00:30]} O-O {[%emt 0:00:00]} 15. g3 $11 {[%emt 0:00:00]} b5 {[%emt 0:00:00]} 16. f4 {[%emt 0:00:00]} exf4 {[%emt 0:00:00]} 17. gxf4 {[%emt 0:00:00]} Rad8 {[%emt 0:02:00]} 18. h4 {[%emt 0:00:00]} Bf6 {[%emt 0:00:00]} 19. h5 {[%emt 0:00:00]} h6 {[%emt 0:00:00]} 20. Bd3 {[%emt 0:00:00]} b4 {[%emt 0:00:00]} 21. Qg2 {[%emt 0:00:00]} a5 {[%emt 0:00:00]} 22. Nd2 {[%emt 0:00:00]} a4 {[%emt 0:02:30]} 23. Nc4 {[%emt 0:00:00]} a3 {[%emt 0:00:00]} 24. b3 {[%emt 0:00:00]} Na7 {[%emt 0:00:00]} 25. e5 {[%emt 0:00:00]} dxe5 {[%emt 0:00:00]} 26. fxe5 {[%emt 0:06:00]} Bxe5 {[%emt 0:00:00]} 27. Qe4 {[%emt 0:00:00]} Rxd3 {[%emt 0:00:00]} 28. Rxd3 {[%emt 0:00:00]} Bf6 {[%emt 0:00:00]} 29. Nd6 {[%emt 0:00:00]} Rd8 {[%emt 0:00:00]} 30. Qc4 {[%emt 0:00:00]} Qe7 {[%emt 0:00:00]} 31. Ne4 {[%emt 0:00:00]} Rxd3 {[%emt 0:00:35]} 32. Nxf6+ {[%emt 0:00:00]} Qxf6 {[%emt 0:00:06]} 33. c3 {[%emt 0:03:30]} Qxc3 {[%emt 0:00:14]} 34. Qxc3 {[%emt 0:00:00]} Rxc3 {[%emt 0:00:05]} 35. Rh4 {[%emt 0:00:00]} Nc6 {[%emt 0:00:03]} 36. Rf4 {[%emt 0:00:00]} g5 {[%emt 0:00:08]} 37. Rf2 {[%emt 0:00:00]} g4 {[%emt 0:00:08]} 38. Rg2 {[%emt 0:00:00]} f5 {[%emt 0:00:06]} 39. Rf2 {[%emt 0:00:00]} Nd4 {[%emt 0:00:05]} 40. Rf4 {[%emt 0:00:00]} Rc1+ {[%emt 0:00:05]} 41. Kxc1 {[%emt 0:00:00]} Ne2+ {[%emt 0:00:03]} 42. Kd2 {[%emt 0:00:00]} Nxf4 {[%emt 0:00:05]} 43. Ke3 {[%emt 0:00:00]} g3 {[%emt 0:00:04]} 44. Kf3 {[%emt 0:00:00]} g2 {[%emt 0:00:04]} 45. Kf2 {[%emt 0:00:00]} Nd3+ {[%emt 0:00:05]} 46. Kxg2 {[%emt 0:00:00]} Nc1 {[%emt 0:00:03]} 47. Kf3 {[%emt 0:00:00]} Nxa2 {[%emt 0:00:06]} 48. Kf4 {[%emt 0:00:00]} Nc1 {[%emt 0:00:06]} 49. Kxf5 {[%emt 0:00:00]} a2 {[%emt 0:00:06]} 50. Kg6 {[%emt 0:00:00]} a1=Q {[%emt 0:00:06]} 51. Kf5 {[%emt 0:00:00]} Qd4 {[%emt 0:00:24]} 52. Ke6 {[%emt 0:00:00]} Nd3 {[%emt 0:00:10]} 53. Ke7 {[%emt 0:00:00]} Nc5 {[%emt 0:00:08]} 54. Ke8 {[%emt 0:00:00]} Qd7# {[%emt 0:00:04]} 0-1

[Event "FIDE World Cup O10-A 2024"]
[Site "Batumi"]
[Date "2024.06.29"]
[Round "7.2"]
[White "Vyom Malhotra"]
[Black "Shangin, Lev"]
[Result "0-1"]
[ECO "B23"]
[WhiteElo "1803"]
[BlackElo "2031"]
[Annotator "NA RC"]
[PlyCount "106"]
[EventDate "2024.06.23"]
[EventType "swiss"]
[EventCountry "GEO"]
[SourceTitle "playchess.com"]
[Source "ChessBase"]
[SourceQuality "1"]
[TimeControl "5400+30"]

1. e4 {[%emt 0:00:20]} c5 {[%emt 0:00:23]} 2. Nc3 {[%emt 0:00:27]} Nc6 {[%emt 0:00:12]} 3. f4 {[%emt 0:00:08]} g6 {[%emt 0:00:05]} 4. Nf3 {[%emt 0:00:32]} Bg7 {[%emt 0:00:12]} 5. a3 {[%emt 0:01:05]} b6 {[%emt 0:00:20]} 6. Bc4 {[%emt 0:00:11] B23: Closed Sicilian: Lines without g3.} e6 {[%emt 0:01:03]} 7. e5 {[%emt 0:00:41]} Nge7 {[%emt 0:01:18]} 8. Ne4 {[%emt 0:01:45]} O-O {[%emt 0:01:00]} 9. b4 {[%emt 0:01:49]} d5 {[%emt 0:02:45]} 10. Nf6+ {[%emt 0:02:45]} Bxf6 {[%emt 0:01:22]} 11. exf6 {[%emt 0:00:10]} Nf5 {[%emt 0:03:33]} 12. Bb5 {[%emt 0:00:48]} Ncd4 {[%emt 0:01:48]} 13. Nxd4 {[%emt 0:09:47]} Nxd4 {[%emt 0:00:40]} 14. Bf1 {[%emt 0:01:17]} Qxf6 {[%emt 0:01:42]} 15. c3 {[%emt 0:05:23]} Nf5 {[%emt 0:03:03]} 16. g3 {[%emt 0:17:23]} Re8 {[%emt 0:01:48]} (16... e5 $142 17. fxe5 Qxe5+ 18. Kf2 Nd6) 17. Bg2 {[%emt 0:03:11]} Ba6 {[%emt 0:01:17]} 18. Kf2 {[%emt 0:14:07]} e5 {[%emt 0:05:15]} 19. fxe5 {[%emt 0:10:34]} Rxe5 {[%emt 0:00:23]} 20. Bf3 {[%emt 0:00:38]} Nh4 $19 {[%emt 0:06:24]} 21. d3 {[%emt 0:03:45]} Nxf3 {[%emt 0:01:03]} 22. Qxf3 {[%emt 0:02:24]} Rf5 {[%emt 0:00:11]} 23. Bf4 {[%emt 0:00:04]} g5 {[%emt 0:00:18]} 24. Rhe1 {[%emt 0:10:47]} gxf4 {[%emt 0:00:26]} 25. g4 {[%emt 0:00:09]} Qh4+ {[%emt 0:00:54]} 26. Kg2 {[%emt 0:00:29]} Rg5 {[%emt 0:00:10]} 27. h3 {[%emt 0:01:55]} h5 {[%emt 0:03:16]} 28. Qf2 {[%emt 0:00:13]} Qxf2+ {[%emt 0:00:10]} 29. Kxf2 {[%emt 0:00:04]} hxg4 {[%emt 0:00:21]} 30. hxg4 {[%emt 0:00:04]} Rxg4 {[%emt 0:00:47]} 31. Kf3 {[%emt 0:00:58]} f5 {[%emt 0:00:14]} 32. Rad1 {[%emt 0:01:00]} Bxd3 {[%emt 0:00:09]} 33. Rxd3 {[%emt 0:03:28]} Rg3+ {[%emt 0:00:15]} 34. Ke2 {[%emt 0:00:30]} Re8+ {[%emt 0:00:05]} 35. Kf2 {[%emt 0:00:05]} Rxe1 {[%emt 0:00:09]} 36. Rxg3+ {[%emt 0:00:05]} fxg3+ {[%emt 0:00:05]} 37. Kxe1 {[%emt 0:00:07]} f4 {[%emt 0:00:04]} 38. Ke2 {[%emt 0:00:05]} d4 {[%emt 0:00:06]} 39. bxc5 {[%emt 0:00:07]} bxc5 {[%emt 0:00:01]} 40. cxd4 {[%emt 0:00:12]} cxd4 {[%emt 0:00:05]} 41. a4 {[%emt 0:00:07]} a5 {[%emt 0:00:06]} 42. Kf3 {[%emt 0:00:13]} d3 {[%emt 0:00:08]} 43. Kxf4 {[%emt 0:00:06]} d2 {[%emt 0:00:04]} 44. Kxg3 {[%emt 0:00:32]} d1=Q {[%emt 0:00:05]} 45. Kg2 {[%emt 0:00:22]} Qd3 {[%emt 0:00:14]} 46. Kf2 {[%emt 0:00:07]} Kf7 {[%emt 0:00:00]} 47. Kg2 {[%emt 0:00:09]} Qe3 {[%emt 0:00:07]} 48. Kh2 {[%emt 0:00:06]} Qg5 {[%emt 0:00:03]} 49. Kh3 {[%emt 0:00:12]} Kf6 {[%emt 0:00:05]} 50. Kh2 {[%emt 0:00:08]} Kf5 {[%emt 0:00:02]} 51. Kh1 {[%emt 0:00:15]} Kf4 {[%emt 0:00:02]} 52. Kh2 {[%emt 0:00:12]} Kf3 {[%emt 0:00:08]} 53. Kh3 {[%emt 0:00:55]} Qh5# {[%emt 1:12:34]} 0-1

[Event "FIDE World Cup O10-A 2024"]
[Site "Batumi"]
[Date "2024.06.29"]
[Round "7.3"]
[White "Chakrabarty, Reyaansh"]
[Black "Safin Safarullakhan"]
[Result "1-0"]
[ECO "B76"]
[WhiteElo "2185"]
[BlackElo "1879"]
[Annotator "RC"]
[PlyCount "129"]
[EventDate "2024.06.23"]
[EventType "swiss"]
[EventCountry "GEO"]
[SourceTitle "playchess.com"]
[Source "ChessBase"]
[SourceQuality "1"]
[TimeControl "5400+30"]

1. e4 {[%emt 0:02:39]} c5 {[%emt 0:00:13]} 2. Nf3 {[%emt 0:00:30]} d6 {[%emt 0:00:13]} 3. d4 {[%emt 0:00:02]} cxd4 {[%emt 0:00:20]} 4. Nxd4 {[%emt 0:00:01]} Nf6 {[%emt 0:00:18]} 5. Nc3 {[%emt 0:00:03]} g6 {[%emt 0:00:17]} 6. Be3 {[%emt 0:00:02]} Bg7 {[%emt 0:00:17]} 7. f3 {[%emt 0:00:02]} O-O {[%emt 0:00:25]} 8. Qd2 {[%emt 0:00:01]} Nc6 {[%emt 0:00:46]} 9. O-O-O {[%emt 0:00:01]} d5 {[%emt 0:00:28]} 10. exd5 {[%emt 0:00:02]} Nxd5 {[%emt 0:00:26]} 11. Nxc6 {[%emt 0:00:02]} bxc6 {[%emt 0:00:21]} 12. Bd4 {[%emt 0:00:02]} e5 {[%emt 0:00:43]} 13. Bc5 {[%emt 0:00:01]} Re8 {[%emt 0:00:37]} 14. Ne4 {[%emt 0:00:08]} Qc7 {[%emt 0:00:31]} 15. Bc4 {[%emt 0:00:03]} Be6 {[%emt 0:01:42]} 16. Bb3 {[%emt 0:00:05]} Rad8 {[%emt 0:08:02]} 17. Rhe1 {[%emt 0:14:44]} h6 {[%emt 0:10:02]} 18. Kb1 {[%emt 0:04:46]} Rd7 {[%emt 0:03:42]} 19. c4 {[%emt 0:31:48]} Nf4 {[%emt 0:03:48]} 20. Bd6 {[%emt 0:04:00]} Qc8 {[%emt 0:05:16]} 21. g3 {[%emt 0:01:45]} Nh5 {[%emt 0:01:36]} 22. Qc3 {[%emt 0:08:42]} Bf5 {[%emt 0:10:04]} 23. g4 {[%emt 0:03:53]} Bxe4+ {[%emt 0:00:18]} 24. fxe4 {[%emt 0:00:20]} Nf4 {[%emt 0:01:09]} 25. c5 {[%emt 0:01:10]} Rb7 {[%emt 0:08:10]} 26. h3 {[%emt 0:04:04]} Qa8 {[%emt 0:07:30]} 27. Bc4 {[%emt 0:04:11]} a5 {[%emt 0:01:03]} 28. Re3 {[%emt 0:00:57]} Qa7 {[%emt 0:05:24]} 29. Qc2 {[%emt 0:03:57]} Bf8 {[%emt 0:01:08]} 30. Rb3 {[%emt 0:05:00]} Rd7 {[%emt 0:02:48]} 31. Bxf8 {[%emt 0:00:20]} Rxf8 {[%emt 0:02:39]} 32. Rb6 {[%emt 0:02:21]} Rfd8 {[%emt 0:02:21]} 33. Rc1 {[%emt 0:01:59]} Qa8 {[%emt 0:17:40]} 34. Qc3 {[%emt 0:01:14]} Rd4 {[%emt 0:01:12]} 35. Ra6 {[%emt 0:01:05]} Qc8 {[%emt 0:00:30]} 36. Qxa5 {[%emt 0:01:56]} Rxe4 {[%emt 0:01:03]} 37. Rxc6 {[%emt 0:01:35]} Qxc6 {[%emt 0:00:51]} 38. Qxd8+ {[%emt 0:00:01]} Kg7 {[%emt 0:00:31]} 39. Qe7 {[%emt 0:03:42]} Rxc4 {[%emt 0:03:10]} 40. Rxc4 {[%emt 0:00:06]} Qh1+ {[%emt 0:00:54]} 41. Rc1 {[%emt 0:00:00]} Qe4+ {[%emt 0:00:33]} 42. Ka1 {[%emt 0:00:18]} Nd3 {[%emt 0:01:02]} 43. Rf1 {[%emt 0:00:35]} Qd5 {[%emt 0:00:50]} 44. Qf6+ {[%emt 0:02:14]} Kg8 {[%emt 0:00:25]} 45. Qd6 {[%emt 0:01:12]} Qc4 {[%emt 0:00:22]} 46. Qb8+ {[%emt 0:00:10]} Kg7 {[%emt 0:00:21]} 47. Qb3 {[%emt 0:00:33]} Qxb3 {[%emt 0:00:45]} 48. axb3 {[%emt 0:00:01]} Nxc5 {[%emt 0:00:17]} 49. b4 {[%emt 0:00:20]} Nd7 {[%emt 0:00:22]} 50. Rd1 {[%emt 0:00:37]} Nb6 {[%emt 0:00:10]} 51. Rd6 {[%emt 0:00:10]} Nc8 {[%emt 0:00:32]} 52. Rc6 {[%emt 0:00:40]} Na7 {[%emt 0:00:52]} 53. Rc5 {[%emt 0:00:06]} Kf6 {[%emt 0:00:52]} 54. b5 {[%emt 0:00:29]} e4 {[%emt 0:00:13]} 55. b6 {[%emt 0:00:11]} e3 {[%emt 0:00:10]} 56. bxa7 {[%emt 0:00:07]} e2 {[%emt 0:00:04]} 57. Rc1 {[%emt 0:00:14]} Ke5 {[%emt 0:00:06]} 58. a8=Q {[%emt 0:00:16]} Kf4 {[%emt 0:00:07]} 59. Qe8 {[%emt 0:00:39]} Kf3 {[%emt 0:00:10]} 60. Qxf7+ {[%emt 0:00:11]} Kg2 {[%emt 0:00:05]} 61. Qb3 {[%emt 0:00:16]} g5 {[%emt 0:00:17]} 62. Qe3 {[%emt 0:00:16]} h5 {[%emt 0:00:10]} 63. gxh5 {[%emt 0:00:07]} g4 {[%emt 0:00:11]} 64. hxg4 {[%emt 0:00:07]} Kh2 {[%emt 0:00:11]} 65. g5 {[%emt 0:00:05]} 1-0

[Event "FIDE World Cup O10-A 2024"]
[Site "Batumi"]
[Date "2024.06.29"]
[Round "7.4"]
[White "Ashwath Kaushik"]
[Black "Hummatov, Safa"]
[Result "1-0"]
[ECO "B90"]
[WhiteElo "2029"]
[BlackElo "1693"]
[Annotator "RC"]
[PlyCount "114"]
[EventDate "2024.06.23"]
[EventType "swiss"]
[EventCountry "GEO"]
[SourceTitle "playchess.com"]
[Source "ChessBase"]
[SourceQuality "1"]
[TimeControl "5400+30"]

1. e4 {[%emt 0:00:03]} c5 {[%emt 0:00:15]} 2. Nf3 {[%emt 0:00:06]} d6 {[%emt 0:00:04]} 3. d4 {[%emt 0:00:08]} cxd4 {[%emt 0:00:03]} 4. Nxd4 {[%emt 0:00:10]} Nf6 {[%emt 0:00:15]} 5. Nc3 {[%emt 0:00:08]} a6 {[%emt 0:00:09]} 6. h4 {[%emt 0:00:04]} b5 {[%emt 0:00:40]} 7. a4 {[%emt 0:00:22]} b4 {[%emt 0:01:09]} 8. Nd5 {[%emt 0:00:06]} Bb7 {[%emt 1:31:55]} 9. Be3 {[%emt 0:15:03]} Nxd5 {[%emt 0:00:00]} 10. exd5 {[%emt 0:00:25]} Bxd5 {[%emt 0:00:00]} 11. a5 {[%emt 0:04:30]} e6 {[%emt 0:00:00]} 12. c4 {[%emt 0:03:58]} bxc3 {[%emt 0:00:00]} 13. bxc3 {[%emt 0:01:46]} Be7 {[%emt 0:00:00]} 14. c4 {[%emt 0:06:52]} Bb7 {[%emt 0:00:00]} 15. Qb3 {[%emt 0:00:41]} Qc7 {[%emt 0:00:00]} 16. Be2 {[%emt 0:09:50]} Nd7 {[%emt 0:00:00]} 17. Qc2 {[%emt 0:05:07]} Nc5 {[%emt 0:00:00]} 18. f3 {[%emt 0:50:11]} Bf6 {[%emt 0:00:00]} 19. Kf2 {[%emt 0:00:00]} h5 {[%emt 0:00:00]} 20. Ra3 {[%emt 0:00:00]} g6 {[%emt 0:00:00]} 21. Qd2 {[%emt 0:00:00]} Kf8 {[%emt 0:00:00]} 22. Bh6+ {[%emt 0:00:00]} Kg8 {[%emt 0:00:00]} 23. Bg5 {[%emt 0:00:00]} Bg7 {[%emt 0:00:00]} 24. Rd1 {[%emt 0:00:00]} f6 {[%emt 0:00:00]} 25. Be3 {[%emt 0:00:00]} Kf7 {[%emt 0:00:00]} 26. Nb3 {[%emt 0:00:00]} Rhd8 {[%emt 0:00:00]} 27. Qb4 {[%emt 0:00:00]} Bf8 {[%emt 0:00:00]} 28. Bf4 {[%emt 0:00:00]} e5 {[%emt 0:00:00]} 29. Be3 {[%emt 0:00:00]} Rab8 {[%emt 0:00:00]} 30. Nxc5 {[%emt 0:00:00]} dxc5 {[%emt 0:00:00]} 31. Qa4 {[%emt 0:00:00]} Bc6 {[%emt 0:00:00]} 32. Qc2 {[%emt 0:00:00]} e4 {[%emt 0:00:00]} 33. f4 {[%emt 0:00:00]} Rxd1 {[%emt 0:00:00]} 34. Bxd1 {[%emt 0:00:00]} f5 {[%emt 0:00:00]} 35. g3 {[%emt 0:00:00]} Bg7 {[%emt 0:00:14]} 36. Ra2 {[%emt 0:00:00]} Qd6 {[%emt 0:00:44]} 37. Qc1 {[%emt 0:00:00]} Bd4 {[%emt 0:03:06]} 38. Rd2 {[%emt 0:00:00]} Bxe3+ {[%emt 0:04:09]} 39. Kxe3 {[%emt 0:00:00]} Qf6 {[%emt 0:00:10]} 40. Qa3 {[%emt 0:00:00]} Rb4 {[%emt 0:00:45]} 41. Be2 {[%emt 0:00:00]} Ba4 {[%emt 0:00:30]} 42. Bd1 {[%emt 0:00:00]} Bxd1 {[%emt 0:00:51]} 43. Rxd1 {[%emt 0:00:00]} Qe6 {[%emt 0:00:39]} 44. Qc3 {[%emt 0:00:39]} Qxc4 {[%emt 0:03:20]} 45. Rd7+ {[%emt 0:00:36]} Ke6 {[%emt 0:00:11]} 46. Qxc4+ {[%emt 0:00:36]} Rxc4 {[%emt 0:00:08]} 47. Rg7 {[%emt 0:00:32]} Rc3+ {[%emt 0:01:02]} 48. Kf2 {[%emt 0:00:25]} Kf6 {[%emt 0:00:39]} 49. Ra7 {[%emt 0:00:05]} c4 {[%emt 0:00:32]} 50. Rxa6+ {[%emt 0:00:05]} Kg7 {[%emt 0:04:00]} 51. Rc6 {[%emt 0:00:40]} Ra3 {[%emt 0:00:00]} 52. a6 {[%emt 0:00:14]} c3 {[%emt 0:00:00]} 53. Ke2 {[%emt 0:00:26]} Ra2+ {[%emt 0:00:00]} 54. Kd1 {[%emt 0:00:37]} c2+ {[%emt 0:00:00]} 55. Kd2 {[%emt 0:00:57]} Kf7 {[%emt 0:00:00]} 56. Kc1 {[%emt 0:03:22]} Ke7 {[%emt 0:00:58]} 57. a7 {[%emt 0:04:45]} Rxa7 {[%emt 0:02:32]} 1-0

[Event "FIDE World Cup O10-A 2024"]
[Site "Batumi"]
[Date "2024.06.29"]
[Round "7.5"]
[White "Mrozowski, Nikodem"]
[Black "Aryan Mehta"]
[Result "1-0"]
[ECO "A65"]
[WhiteElo "1776"]
[BlackElo "1863"]
[Annotator "NA RC"]
[PlyCount "73"]
[EventDate "2024.06.23"]
[EventType "swiss"]
[EventCountry "GEO"]
[SourceTitle "playchess.com"]
[Source "ChessBase"]
[SourceQuality "1"]
[TimeControl "5400+30"]

1. d4 {[%emt 0:00:03]} Nf6 {[%emt 0:00:07]} 2. c4 {[%emt 0:00:11]} g6 {[%emt 0:00:07]} 3. Nc3 {[%emt 0:00:11]} Bg7 {[%emt 0:00:05]} 4. e4 {[%emt 0:00:06]} d6 {[%emt 0:00:04]} 5. f3 {[%emt 0:00:06]} O-O {[%emt 0:00:09]} 6. Bg5 {[%emt 0:00:22]} h6 {[%emt 0:01:41]} 7. Be3 {[%emt 0:00:11]} c5 {[%emt 0:00:11]} 8. d5 {[%emt 0:00:35]} e6 {[%emt 0:02:15]} 9. Qd2 {[%emt 0:00:16]} exd5 {[%emt 0:00:37]} 10. cxd5 {[%emt 0:00:09]} Kh7 {[%emt 0:00:16]} 11. Bd3 {[%emt 0:01:48]} Nbd7 {[%emt 0:00:34]} 12. Nh3 {[%emt 0:00:28]} Ne5 {[%emt 0:00:43]} 13. Nf2 {[%emt 0:00:43]} Bd7 {[%emt 0:08:57]} 14. O-O-O {[%emt 0:03:12]} b5 {[%emt 0:12:57]} 15. Bxb5 {[%emt 0:09:04]} Bxb5 {[%emt 0:00:19]} 16. Nxb5 {[%emt 0:00:07]} Nc4 {[%emt 0:01:21]} 17. Qe2 {[%emt 0:00:26]} Nxe3 {[%emt 0:04:32]} 18. Qxe3 {[%emt 0:00:18]} Qa5 {[%emt 0:02:44]} 19. Nxd6 {[%emt 0:15:06]} Rad8 {[%emt 0:15:06]} 20. e5 {[%emt 0:15:08]} Qxa2 {[%emt 0:03:43]} 21. Qa3 {[%emt 0:00:58]} Qxa3 {[%emt 0:00:12]} 22. bxa3 {[%emt 0:00:06]} Nh5 {[%emt 0:00:49]} 23. Rhe1 {[%emt 0:04:22]} Bxe5 {[%emt 0:44:31]} 24. Rxe5 {[%emt 0:00:38]} Rxd6 {[%emt 0:00:00]} 25. Ne4 {[%emt 0:00:48]} Rdd8 {[%emt 0:00:00]} 26. d6 {[%emt 0:05:52]} Nf4 {[%emt 0:00:00]} 27. Nxc5 {[%emt 0:04:32]} Kg7 {[%emt 0:00:00]} 28. d7 {[%emt 0:01:16]} Kf6 {[%emt 0:00:00]} 29. Rde1 {[%emt 0:37:58]} Nh5 {[%emt 0:00:00]} 30. Re8 {[%emt 0:00:00]} Ng7 {[%emt 0:00:00]} 31. Ne4+ {[%emt 0:01:00]} Kf5 {[%emt 0:00:00]} 32. Nd6+ {[%emt 0:00:00]} Kf6 {[%emt 0:00:00]} 33. Rxf8 {[%emt 0:00:00]} Rxf8 {[%emt 0:00:00]} 34. Ne8+ {[%emt 0:00:00]} Rxe8 {[%emt 0:00:00]} 35. Rxe8 {[%emt 0:00:00]} Nxe8 {[%emt 0:00:00]} 36. dxe8=Q {[%emt 0:00:00]} a5 {[%emt 0:00:00]} 37. f4 {[%emt 0:00:00]} 1-0

[Event "FIDE World Cup O10-A 2024"]
[Site "Batumi"]
[Date "2024.06.29"]
[Round "7.6"]
[White "Kiladze, Giorgi"]
[Black "Ramesan, Raunak Amit"]
[Result "0-1"]
[ECO "C58"]
[WhiteElo "1552"]
[BlackElo "1772"]
[Annotator "NA RC"]
[PlyCount "62"]
[EventDate "2024.06.23"]
[EventType "swiss"]
[EventCountry "GEO"]
[SourceTitle "playchess.com"]
[Source "ChessBase"]
[SourceQuality "1"]
[TimeControl "5400+30"]

1. e4 {[%emt 0:03:07]} e5 {[%emt 0:00:06]} 2. Nf3 {[%emt 0:00:43]} Nc6 {[%emt 0:00:06]} 3. Bc4 {[%emt 0:00:04]} Nf6 {[%emt 0:00:05]} 4. Ng5 {[%emt 0:00:05]} d5 {[%emt 0:00:13]} 5. exd5 {[%emt 0:00:04]} Na5 {[%emt 0:00:11]} 6. Bb5+ {[%emt 0:00:16]} c6 {[%emt 0:00:13]} 7. dxc6 {[%emt 0:00:05]} bxc6 {[%emt 0:00:06]} 8. Qf3 {[%emt 0:00:09]} Be7 {[%emt 0:00:15]} 9. Bxc6+ {[%emt 0:01:05]} Nxc6 {[%emt 0:01:23]} 10. Qxc6+ {[%emt 0:00:07]} Bd7 {[%emt 0:00:05]} 11. Qf3 {[%emt 0:00:14]} O-O {[%emt 0:13:05]} 12. O-O {[%emt 0:04:56]} Rc8 {[%emt 0:04:24]} 13. Nc3 {[%emt 0:16:16]} Bc6 {[%emt 0:01:15]} 14. Qe2 {[%emt 0:01:54]} Nd5 {[%emt 0:13:25]} 15. Nf3 {[%emt 0:23:34]} Nf4 {[%emt 0:10:06]} 16. Qxe5 {[%emt 0:04:41]} Bd6 {[%emt 0:00:58]} 17. Qg5 {[%emt 0:04:34]} f6 {[%emt 0:04:15]} 18. Qg4 {[%emt 0:02:17]} h5 {[%emt 0:01:46]} 19. Qg3 {[%emt 0:07:30]} Ne2+ {[%emt 0:00:43]} 20. Nxe2 {[%emt 0:00:06]} Bxg3 {[%emt 0:00:05]} 21. fxg3 {[%emt 0:01:50]} Bxf3 {[%emt 0:00:14]} 22. gxf3 {[%emt 0:01:46]} Rxc2 {[%emt 0:00:16]} 23. Nc3 {[%emt 0:00:26]} Qd4+ {[%emt 0:00:42]} 24. Kg2 {[%emt 0:00:11]} Re8 {[%emt 0:00:50]} 25. a3 {[%emt 0:01:41]} a5 {[%emt 0:04:51]} 26. Rb1 {[%emt 0:00:31]} Qd3 {[%emt 0:01:13]} 27. Ra1 {[%emt 0:00:22]} h4 {[%emt 0:01:07]} 28. gxh4 {[%emt 0:11:52]} Qg6+ {[%emt 0:00:49]} 29. Kh1 {[%emt 0:00:20]} Qh5 {[%emt 0:00:36]} 30. Ne4 {[%emt 0:01:44]} Qxh4 {[%emt 0:00:26]} 31. d3 {[%emt 0:01:05]} Qxh2# {[%emt 0:00:08]} 0-1

[Event "FIDE World Cup O10-A 2024"]
[Site "Batumi"]
[Date "2024.06.29"]
[Round "7.7"]
[White "Eshkol, Idan"]
[Black "Ismailov, Omarbek"]
[Result "1-0"]
[ECO "B40"]
[WhiteElo "1544"]
[BlackElo "1716"]
[Annotator "NA RC"]
[PlyCount "53"]
[EventDate "2024.06.23"]
[EventType "swiss"]
[EventCountry "GEO"]
[SourceTitle "playchess.com"]
[Source "ChessBase"]
[SourceQuality "1"]
[TimeControl "5400+30"]

1. e4 {[%emt 0:00:02]} c5 {[%emt 0:00:11]} 2. Nf3 {[%emt 0:00:04]} Nc6 {[%emt 0:00:24]} 3. b3 {[%emt 0:00:07]} e6 {[%emt 0:02:16]} 4. Bb2 {[%emt 0:00:05]} Nf6 {[%emt 0:00:14]} 5. e5 {[%emt 0:00:04]} Nd5 {[%emt 0:00:09]} 6. Nc3 {[%emt 0:00:04]} Nb6 {[%emt 0:00:25]} 7. Bb5 {[%emt 0:03:24]} Qc7 {[%emt 0:04:55]} 8. Ne4 {[%emt 0:02:22]} Nd5 {[%emt 0:06:33]} 9. O-O {[%emt 0:07:55]} Be7 {[%emt 0:04:16]} 10. Bxc6 {[%emt 0:05:57]} bxc6 {[%emt 0:00:18]} 11. Nd6+ {[%emt 0:00:12]} Bxd6 {[%emt 0:00:11]} 12. exd6 {[%emt 0:00:05]} Qxd6 {[%emt 0:00:05]} 13. Bxg7 {[%emt 0:00:10]} Rg8 {[%emt 0:00:09]} 14. Be5 {[%emt 0:00:07]} Qe7 {[%emt 0:00:07]} 15. c4 {[%emt 0:02:49]} Nb6 {[%emt 0:04:37]} 16. Qc2 {[%emt 0:05:28]} f6 {[%emt 0:01:52]} 17. Bg3 {[%emt 0:01:19]} Qg7 {[%emt 0:03:05]} 18. Rfe1 {[%emt 0:01:41]} Kd8 {[%emt 0:04:14]} 19. Qe4 {[%emt 0:03:47]} d5 {[%emt 0:09:03]} 20. Qh4 {[%emt 0:07:18]} Kd7 {[%emt 0:14:11]} 21. d4 {[%emt 0:00:37]} cxd4 {[%emt 0:00:54]} 22. c5 {[%emt 0:00:04]} e5 {[%emt 0:02:34]} 23. cxb6 {[%emt 0:00:13]} axb6 {[%emt 0:00:07]} 24. a4 {[%emt 0:01:27]} c5 {[%emt 0:08:24]} 25. Qh5 {[%emt 0:10:36]} Kc6 {[%emt 0:07:17]} 26. h3 {[%emt 0:04:38]} e4 {[%emt 0:01:23]} 27. Nxd4+ {[%emt 0:01:12]} 1-0